fUST/lending_fUST_20250923
["ID","MTS","AMOUNT","RATE_DAILY","PERIOD"]
[387082777,1758568247499,-480.0,0.00019178,2]
[387082779,1758568247508,-628.9948553,0.00019178,2]
[387082782,1758568247521,-480.0,0.00019178,2]
[387082784,1758568247531,-480.0,0.00019178,2]
[387082786,1758568247541,-480.0,0.00019178,2]
[387082788,1758568247551,-157.13118451,0.00019178,2]
[387082790,1758568247562,-480.0,0.00019178,2]
[387082792,1758568247571,-480.0,0.00019178,2]
[387082794,1758568247581,-480.0,0.00019178,2]
[387082796,1758568247590,-480.0,0.00019178,2]
[387082797,1758568247601,-480.0,0.00019178,2]
[387082799,1758568247611,-480.0,0.00019178,2]
[387082801,1758568247620,-480.0,0.00019178,2]
[387082802,1758568247630,-480.0,0.00019178,2]
[387082804,1758568247639,-542.56,0.00019178,2]
[387082806,1758568247648,-480.0,0.00019178,2]
[387082808,1758568247659,-500.0,0.0001945,2]
[387082810,1758568247668,-500.0,0.00019451,2]
[387082812,1758568247678,-165.007498,0.00019452,2]
[387082814,1758568247687,-480.0,0.00019452,2]
[387082816,1758568247696,-480.0,0.00019452,2]
[387082818,1758568247706,-480.0,0.00019452,2]
[387082820,1758568247716,-480.0,0.00019452,2]
[387082822,1758568247725,-487.47340476,0.00019452,2]
[387082824,1758568247735,-480.0,0.00019452,2]
[387082826,1758568247745,-480.0,0.00019452,2]
[387082828,1758568247753,-480.0,0.00019452,2]
[387082829,1758568247763,-480.0,0.00019452,2]
[387082831,1758568247772,-480.0,0.00019452,2]
[387082833,1758568247781,-480.0,0.00019452,2]
[387082835,1758568247791,-480.0,0.00019452,2]
[387082837,1758568247801,-535.3,0.00019452,2]
[387082839,1758568247811,-480.0,0.00019452,2]
[387082841,1758568247820,-480.0,0.00019452,2]
[387082843,1758568247829,-480.0,0.00019452,2]
[387082845,1758568247839,-480.0,0.00019452,2]
[387082847,1758568247848,-480.0,0.00019452,2]
[387082849,1758568247857,-480.0,0.00019452,2]
[387082851,1758568247866,-480.0,0.00019452,2]
[387082852,1758568247875,-480.0,0.00019452,2]
[387082854,1758568247884,-358.72600664,0.00019452,2]
[387082856,1758568247893,-480.0,0.00019452,2]
[387082858,1758568247902,-480.0,0.00019452,2]
[387082860,1758568247913,-480.0,0.00019452,2]
[387082862,1758568247923,-480.0,0.00019452,2]
[387082864,1758568247932,-814.12,0.00019452,2]
[387082866,1758568247941,-275.50456628,0.00019452,2]
[387082868,1758568247951,-480.0,0.00019452,2]
[387082870,1758568247960,-480.0,0.00019452,2]
[387082872,1758568247970,-480.0,0.00019452,2]
[387082874,1758568247979,-480.0,0.00019452,2]
[387082876,1758568247988,-480.0,0.00019452,2]
[387082878,1758568247998,-3912.38,0.00019452,2]
[387082880,1758568248007,-482.25,0.00019452,2]
[387082881,1758568248016,-480.0,0.00019452,2]
[387082883,1758568248026,-480.0,0.00019452,2]
[387082885,1758568248035,-480.0,0.00019452,2]
[387082887,1758568248047,-480.0,0.00019452,2]
[387082889,1758568248057,-480.0,0.00019452,2]
[387082891,1758568248066,-1780.77,0.00019452,2]
[387082893,1758568248076,-480.0,0.00019452,2]
[387082895,1758568248086,-480.0,0.00019452,2]
[387082897,1758568248095,-480.0,0.00019452,2]
[387082899,1758568248104,-480.0,0.00019452,2]
[387082901,1758568248113,-480.0,0.00019452,2]
[387082903,1758568248123,-480.0,0.00019452,2]
[387082905,1758568248132,-480.0,0.00019452,2]
[387082907,1758568248141,-480.0,0.00019452,2]
[387082909,1758568248150,-480.0,0.00019452,2]
[387082910,1758568248159,-480.0,0.00019452,2]
[387082912,1758568248169,-480.0,0.00019452,2]
[387082914,1758568248179,-480.0,0.00019452,2]
[387082916,1758568248188,-480.0,0.00019452,2]
[387082918,1758568248198,-480.0,0.00019452,2]
[387082920,1758568248208,-778.24,0.00019452,2]
[387082922,1758568248217,-480.0,0.00019452,2]
[387082924,1758568248227,-480.0,0.00019452,2]
[387082926,1758568248236,-480.0,0.00019452,2]
[387082928,1758568248246,-480.0,0.00019452,2]
[387082930,1758568248256,-480.0,0.00019452,2]
[387082932,1758568248265,-480.0,0.00019452,2]
[387082934,1758568248274,-654.47,0.00019452,2]
[387082936,1758568248284,-480.0,0.00019452,2]
[387082938,1758568248296,-480.0,0.00019452,2]
[387082940,1758568248305,-480.0,0.00019452,2]
[387082942,1758568248315,-480.0,0.00019452,2]
[387082944,1758568248325,-480.0,0.00019452,2]
[387082946,1758568248334,-480.0,0.00019452,2]
[387082948,1758568248343,-480.0,0.00019452,2]
[387082950,1758568248353,-480.0,0.00019452,2]
[387082952,1758568248361,-480.0,0.00019452,2]
[387082954,1758568248370,-480.0,0.00019452,2]
[387082956,1758568248379,-480.0,0.00019452,2]
[387082958,1758568248388,-480.0,0.00019452,2]
[387082960,1758568248397,-480.0,0.00019452,2]
[387082962,1758568248407,-480.0,0.00019452,2]
[387082964,1758568248416,-480.0,0.00019452,2]
[387082965,1758568248424,-480.0,0.00019452,2]
[387082967,1758568248434,-480.0,0.00019452,2]
[387082969,1758568248443,-475.27616622,0.00019664,2]
[387082971,1758568248452,-501.26796039,0.00019696,2]
[387082973,1758568248462,-4182.62455845,0.0001972,2]
[387082975,1758568248471,-263.92962388,0.00019721,2]
[387082977,1758568248483,-502.00681975,0.00019721,2]
[387082979,1758568248495,-1000.0,0.00019721,2]
[387082981,1758568248505,-506.70609278,0.00019721,2]
[387082983,1758568248516,-1000.0,0.00019721,2]
[387082985,1758568248526,-500.0,0.00019721,2]
[387082987,1758568248535,-1000.0,0.00019721,2]
[387082989,1758568248546,-1000.0,0.00019721,2]
[387082991,1758568248555,-1000.0,0.00019721,2]
[387082993,1758568248565,-600.6141563,0.00019721,2]
[387082995,1758568248574,-500.0,0.00019725,2]
[387082996,1758568248584,-151.0,0.00019726,2]
[387082998,1758568248595,-480.0,0.00019726,2]
[387083000,1758568248604,-480.0,0.00019726,2]
[387083002,1758568248614,-480.0,0.00019726,2]
[387083004,1758568248624,-480.0,0.00019726,2]
[387083006,1758568248635,-480.0,0.00019726,2]
[387083008,1758568248644,-480.0,0.00019726,2]
[387083010,1758568248654,-480.0,0.00019726,2]
[387083012,1758568248663,-480.0,0.00019726,2]
[387083014,1758568248673,-562.19,0.00019726,2]
[387083016,1758568248682,-480.0,0.00019726,2]
[387083018,1758568248693,-480.0,0.00019726,2]
[387083020,1758568248702,-480.0,0.00019726,2]
[387083021,1758568248711,-480.0,0.00019726,2]
[387083023,1758568248720,-480.0,0.00019726,2]
[387083025,1758568248730,-480.0,0.00019726,2]
[387083027,1758568248739,-163.08866682,0.00019726,2]
[387083029,1758568248748,-480.0,0.00019726,2]
[387083031,1758568248757,-480.0,0.00019726,2]
[387083033,1758568248766,-480.0,0.00019726,2]
[387083035,1758568248776,-814.12,0.00019726,2]
[387083037,1758568248785,-484.8,0.00019726,2]
[387083039,1758568248796,-480.0,0.00019726,2]
[387083041,1758568248806,-480.0,0.00019726,2]
[387083043,1758568248816,-480.0,0.00019726,2]
[387083044,1758568248825,-3912.38,0.00019726,2]
[387083046,1758568248835,-482.25,0.00019726,2]
[387083048,1758568248844,-480.0,0.00019726,2]
[387083050,1758568248853,-480.0,0.00019726,2]
[387083052,1758568248863,-480.0,0.00019726,2]
[387083054,1758568248872,-480.0,0.00019726,2]
[387083056,1758568248882,-1780.77,0.00019726,2]
[387083058,1758568248891,-480.0,0.00019726,2]
[387083060,1758568248902,-306.44823262,0.00019726,2]
[387083062,1758568248911,-480.0,0.00019726,2]
[387083064,1758568248920,-480.0,0.00019726,2]
[387083066,1758568248930,-480.0,0.00019726,2]
[387083068,1758568248939,-480.0,0.00019726,2]
[387083070,1758568248948,-480.0,0.00019726,2]
[387083072,1758568248958,-480.0,0.00019726,2]
[387083074,1758568248967,-480.0,0.00019726,2]
[387083076,1758568248976,-480.0,0.00019726,2]
[387083077,1758568248986,-480.0,0.00019726,2]
[387083079,1758568248995,-480.0,0.00019726,2]
[387083081,1758568249006,-480.0,0.00019726,2]
[387083083,1758568249016,-778.24,0.00019726,2]
[387083085,1758568249026,-480.0,0.00019726,2]
[387083087,1758568249035,-480.0,0.00019726,2]
[387083089,1758568249045,-480.0,0.00019726,2]
[387083091,1758568249054,-480.0,0.00019726,2]
[387083093,1758568249063,-480.0,0.00019726,2]
[387083095,1758568249073,-654.47,0.00019726,2]
[387083097,1758568249082,-480.0,0.00019726,2]
[387083099,1758568249092,-480.0,0.00019726,2]
[387083100,1758568249104,-480.0,0.00019726,2]
[387083102,1758568249114,-480.0,0.00019726,2]
[387083104,1758568249124,-480.0,0.00019726,2]
[387083106,1758568249136,-480.0,0.00019726,2]
[387083108,1758568249145,-480.0,0.00019726,2]
[387083110,1758568249155,-480.0,0.00019726,2]
[387083112,1758568249165,-480.0,0.00019726,2]
[387083114,1758568249174,-480.0,0.00019726,2]
[387083116,1758568249183,-480.0,0.00019726,2]
[387083118,1758568249192,-480.0,0.00019726,2]
[387083120,1758568249201,-480.0,0.00019726,2]
[387083122,1758568249211,-480.0,0.00019726,2]
[387083124,1758568249220,-480.0,0.00019726,2]
[387083126,1758568249229,-245.1458245,0.000198,2]
[387083128,1758568249239,-189.80694929,0.00019872,2]
[387083129,1758568249248,-689.01061952,0.00019872,2]
[387083130,1758568249257,-1065.67,0.000199,2]
[387083131,1758568249266,-264.9789578,0.000199,2]
[387083132,1758568249278,-4943.15271175,0.000199,2]
[387083133,1758568249287,-13320.60171623,0.000199,2]
[387083134,1758568249297,-500.0,0.00019921,2]
[387083135,1758568249306,-500.0,0.00019999,2]
[387083136,1758568249315,-500.0,0.00019999,2]
[387083137,1758568249324,-21523.5641125,0.0002,2]
[387083138,1758568249333,-151.0,0.0002,2]
[387083139,1758568249342,-480.0,0.0002,2]
[387083141,1758568249351,-480.0,0.0002,2]
[387083143,1758568249360,-480.0,0.0002,2]
[387083145,1758568249369,-525.72,0.0002,2]
[387083147,1758568249378,-480.0,0.0002,2]
[387083149,1758568249387,-480.0,0.0002,2]
[387083151,1758568249396,-480.0,0.0002,2]
[387083153,1758568249417,-480.0,0.0002,2]
[387083155,1758568249434,-480.0,0.0002,2]
[387083157,1758568249443,-480.0,0.0002,2]
[387083159,1758568249453,-480.0,0.0002,2]
[387083161,1758568249463,-480.0,0.0002,2]
[387083163,1758568249472,-480.0,0.0002,2]
[387083165,1758568249482,-480.0,0.0002,2]
[387083167,1758568249491,-480.0,0.0002,2]
[387083169,1758568249500,-814.12,0.0002,2]
[387083171,1758568249509,-480.0,0.0002,2]
[387083173,1758568249522,-441.2808001,0.0002,2]
[387083175,1758568249531,-480.0,0.0002,2]
[387083177,1758568249541,-3912.38,0.0002,2]
[387083179,1758568249550,-482.25,0.0002,2]
[387083181,1758568249559,-480.0,0.0002,2]
[387083183,1758568249569,-480.0,0.0002,2]
[387083185,1758568249579,-480.0,0.0002,2]
[387083187,1758568249589,-480.0,0.0002,2]
[387083189,1758568249598,-1780.77,0.0002,2]
[387083191,1758568249608,-480.0,0.0002,2]
[387083193,1758568249617,-480.0,0.0002,2]
[387083195,1758568249627,-592.32,0.0002,2]
[387083197,1758568249637,-480.0,0.0002,2]
[387083199,1758568249646,-480.0,0.0002,2]
[387083201,1758568249655,-480.0,0.0002,2]
[387083203,1758568249665,-480.0,0.0002,2]
[387083205,1758568249674,-480.0,0.0002,2]
[387083207,1758568249683,-480.0,0.0002,2]
[387083209,1758568249693,-480.0,0.0002,2]
[387083211,1758568249702,-480.0,0.0002,2]
[387083213,1758568249711,-480.0,0.0002,2]
[387083215,1758568249720,-778.24,0.0002,2]
[387083217,1758568249729,-480.0,0.0002,2]
[387083219,1758568249738,-480.0,0.0002,2]
[387083221,1758568249747,-480.0,0.0002,2]
[387083222,1758568249756,-480.0,0.0002,2]
[387083224,1758568249765,-480.0,0.0002,2]
[387083226,1758568249774,-654.47,0.0002,2]
[387083228,1758568249784,-480.0,0.0002,2]
[387083230,1758568249794,-480.0,0.0002,2]
[387083232,1758568249804,-480.0,0.0002,2]
[387083234,1758568249814,-480.0,0.0002,2]
[387083236,1758568249823,-480.0,0.0002,2]
[387083238,1758568249832,-480.0,0.0002,2]
[387083240,1758568249841,-480.0,0.0002,2]
[387083242,1758568249850,-480.0,0.0002,2]
[387083244,1758568249859,-480.0,0.0002,2]
[387083247,1758568249869,-480.0,0.0002,2]
[387083249,1758568249878,-480.0,0.0002,2]
[387083250,1758568249887,-480.0,0.0002,2]
[387083252,1758568249896,-480.0,0.0002,2]
[387083254,1758568249906,-480.0,0.0002,2]
[387083256,1758568249915,-800.0,0.00020021,2]
[387083258,1758568249924,-151.9515427,0.0002004,2]
[387083260,1758568249934,-800.0,0.00020052,2]
[387083262,1758568249943,-151.0,0.00020146,2]
[387083264,1758568249952,-151.0,0.00020146,2]
[387083266,1758568249961,-151.0,0.00020146,2]
[387083268,1758568249970,-151.0,0.00020146,2]
[387083270,1758568249978,-269.33264938,0.00020146,2]
[387083272,1758568249987,-287.94012382,0.00020146,2]
[387083274,1758568249996,-151.0,0.00020146,2]
[387083276,1758568250007,-263.91856117,0.00020146,2]
[387083278,1758568250016,-500.0,0.00020146,2]
[387083280,1758568250025,-151.0,0.00020146,2]
[387083282,1758568250034,-151.0,0.00020146,2]
[387083284,1758568250044,-13231.11104996,0.00020173,2]
[387083286,1758568250053,-551.43395305,0.00020189,2]
[387083288,1758568250063,-212.5033103,0.00020245,2]
[387083290,1758568250072,-800.0,0.00020261,2]
[387083292,1758568250081,-1000.0,0.00020268,2]
[387083294,1758568250091,-500.0,0.00020268,2]
[387083297,1758568250100,-346.5277038,0.0002027,2]
[387083299,1758568250109,-500.0,0.00020272,2]
[387083301,1758568250118,-480.0,0.00020273,2]
[387083303,1758568250127,-480.0,0.00020273,2]
[387083305,1758568250136,-480.0,0.00020273,2]
[387083307,1758568250146,-814.12,0.00020273,2]
[387083309,1758568250155,-480.0,0.00020273,2]
[387083311,1758568250164,-3912.38,0.00020273,2]
[387083313,1758568250173,-482.25,0.00020273,2]
[387083325,1758568250276,-360.44,0.00020273,2]
[387083327,1758568250285,-480.0,0.00020273,2]
[387083329,1758568250294,-1780.77,0.00020273,2]
[387083331,1758568250303,-480.0,0.00020273,2]
[387083333,1758568250312,-480.0,0.00020273,2]
[387083335,1758568250322,-480.0,0.00020273,2]
[387083337,1758568250330,-193.15,0.00020273,2]
[387083339,1758568250340,-480.0,0.00020273,2]
[387083341,1758568250349,-480.0,0.00020273,2]
[387083343,1758568250358,-778.24,0.00020273,2]
[387083345,1758568250367,-241.78,0.00020273,2]
[387083347,1758568250377,-480.0,0.00020273,2]
[387083349,1758568250386,-480.0,0.00020273,2]
[387083351,1758568250395,-654.47,0.00020273,2]
[387083353,1758568250404,-480.0,0.00020273,2]
[387083355,1758568250413,-480.0,0.00020273,2]
[387083357,1758568250422,-480.0,0.00020273,2]
[387083359,1758568250431,-480.0,0.00020273,2]
[387083361,1758568250440,-480.0,0.00020273,2]
[387083363,1758568250449,-480.0,0.00020273,2]
[387083365,1758568250459,-480.0,0.00020273,2]
[387083367,1758568250468,-480.0,0.00020273,2]
[387083369,1758568250477,-480.0,0.00020273,2]
[387083370,1758568250486,-480.0,0.00020273,2]
[387083372,1758568250495,-480.0,0.00020273,2]
[387083374,1758568250505,-160.0,0.00020288,2]
[387083376,1758568250514,-300.0,0.00020354,2]
[387083378,1758568250528,-151.0,0.0002042,2]
[387083380,1758568250538,-151.0,0.0002042,2]
[387083383,1758568250549,-151.0,0.0002042,2]
[387083385,1758568250559,-151.0,0.0002042,2]
[387083387,1758568250569,-500.0,0.0002042,2]
[387083389,1758568250579,-282.12,0.00020426,2]
[387083391,1758568250588,-1766.05470105,0.00020499,2]
[387083393,1758568250598,-168.58402945,0.000205,2]
[387083394,1758568250608,-480.0,0.00020547,2]
[387083396,1758568250618,-480.0,0.00020547,2]
[387083398,1758568250627,-814.12,0.00020547,2]
[387083401,1758568250637,-480.0,0.00020547,2]
[387083403,1758568250647,-3912.38,0.00020547,2]
[387083405,1758568250656,-482.25,0.00020547,2]
[387083407,1758568250665,-480.0,0.00020547,2]
[387083409,1758568250675,-1780.77,0.00020547,2]
[387083411,1758568250684,-480.0,0.00020547,2]
[387083413,1758568250693,-480.0,0.00020547,2]
[387083415,1758568250703,-480.0,0.00020547,2]
[387083417,1758568250713,-480.0,0.00020547,2]
[387083419,1758568250722,-480.0,0.00020547,2]
[387083421,1758568250731,-778.24,0.00020547,2]
[387083423,1758568250740,-480.0,0.00020547,2]
[387083425,1758568250751,-480.0,0.00020547,2]
[387083427,1758568250760,-654.47,0.00020547,2]
[387083429,1758568250771,-306.23922756,0.00020547,2]
[387083431,1758568250780,-480.0,0.00020547,2]
[387083432,1758568250790,-480.0,0.00020547,2]
[387083434,1758568250800,-480.0,0.00020547,2]
[387083436,1758568250810,-480.0,0.00020547,2]
[387083438,1758568250819,-480.0,0.00020547,2]
[387083440,1758568250829,-480.0,0.00020547,2]
[387083442,1758568250838,-480.0,0.00020547,2]
[387083444,1758568250847,-151.0,0.00020656,2]
[387083446,1758568250857,-151.0,0.00020694,2]
[387083448,1758568250866,-151.0,0.00020694,2]
[387083450,1758568250876,-245.0,0.00020694,2]
[387083452,1758568250885,-500.0,0.00020694,2]
[387083454,1758568250895,-364.11638228,0.00020696,2]
[387083456,1758568250904,-8713.2082817,0.0002071,2]
[387083458,1758568250913,-2000.0,0.00020772,2]
[387083460,1758568250923,-480.0,0.00020821,2]
[387083462,1758568250933,-480.0,0.00020821,2]
[387083464,1758568250942,-814.12,0.00020821,2]
[387083466,1758568250952,-480.0,0.00020821,2]
[387083468,1758568250961,-3912.38,0.00020821,2]
[387083470,1758568250970,-482.25,0.00020821,2]
[387083472,1758568250979,-480.0,0.00020821,2]
[387083474,1758568250988,-1780.77,0.00020821,2]
[387083476,1758568250997,-480.0,0.00020821,2]
[387083478,1758568251007,-480.0,0.00020821,2]
[387083480,1758568251016,-480.0,0.00020821,2]
[387083482,1758568251026,-480.0,0.00020821,2]
[387083484,1758568251035,-454.43,0.00020821,2]
[387083486,1758568251044,-778.24,0.00020821,2]
[387083488,1758568251055,-480.0,0.00020821,2]
[387083490,1758568251064,-480.0,0.00020821,2]
[387083492,1758568251074,-654.47,0.00020821,2]
[387083494,1758568251084,-477.80859668,0.00020821,2]
[387083496,1758568251094,-480.0,0.00020821,2]
[387083498,1758568251104,-480.0,0.00020821,2]
[387083500,1758568251113,-393.21,0.00020821,2]
[387083502,1758568251123,-480.0,0.00020821,2]
[387083504,1758568251132,-480.0,0.00020821,2]
[387083506,1758568251142,-260.0,0.00020835,2]
[387083508,1758568251152,-2753.28643559,0.00020844,2]
[387083510,1758568251162,-420.0,0.00020889,2]
[387083513,1758568251173,-771.0,0.0002089,2]
[387083515,1758568251183,-155.0,0.00020956,2]
[387083517,1758568251193,-151.0,0.00020968,2]
[387083519,1758568251202,-151.0,0.00020968,2]
[387083520,1758568251215,-500.0,0.00020968,2]
[387083522,1758568251228,-4943.15271166,0.00020972,2]
[387083525,1758568251237,-1680.0,0.0002099,2]
[387083527,1758568251247,-20106.70645991,0.00021,3]
[387083529,1758568251257,-417.15472785,0.00021,3]
[387083531,1758568251266,-160.0,0.00021,3]
[387083533,1758568251275,-1944.1795593,0.00021052,2]
[387083535,1758568251284,-480.0,0.00021095,2]
[387083537,1758568251293,-480.0,0.00021095,2]
[387083539,1758568251302,-814.12,0.00021095,2]
[387083541,1758568251312,-480.0,0.00021095,2]
[387083543,1758568251322,-3912.38,0.00021095,2]
[387083545,1758568251332,-482.25,0.00021095,2]
[387083547,1758568251341,-480.0,0.00021095,2]
[387083549,1758568251350,-1780.77,0.00021095,2]
[387083551,1758568251360,-480.0,0.00021095,2]
[387083553,1758568251369,-480.0,0.00021095,2]
[387083555,1758568251378,-480.0,0.00021095,2]
[387083557,1758568251387,-480.0,0.00021095,2]
[387083559,1758568251396,-778.24,0.00021095,2]
[387083561,1758568251405,-480.0,0.00021095,2]
[387083563,1758568251414,-480.0,0.00021095,2]
[387083565,1758568251424,-654.47,0.00021095,2]
[387083567,1758568251433,-480.0,0.00021095,2]
[387083569,1758568251442,-480.0,0.00021095,2]
[387083571,1758568251451,-480.0,0.00021095,2]
[387083573,1758568251461,-480.0,0.00021095,2]
[387083575,1758568251470,-162.1507051,0.00021138,2]
[387083577,1758568251479,-162.1507051,0.00021138,2]
[387083579,1758568251489,-161.9132995,0.00021138,2]
[387083581,1758568251498,-4396.0,0.00021174,2]
[387083583,1758568251507,-151.0,0.00021242,2]
[387083585,1758568251517,-151.0,0.00021242,2]
[387083587,1758568251529,-500.0,0.00021242,2]
[387083589,1758568251539,-13231.11104994,0.00021338,2]
[387083591,1758568251549,-500.0,0.00021363,2]
[387083592,1758568251559,-500.0,0.00021363,2]
[387083595,1758568251569,-500.65398291,0.00021363,2]
[387083597,1758568251577,-500.85354006,0.00021363,2]
[387083599,1758568251586,-500.0,0.00021363,2]
[387083600,1758568251598,-501.09470394,0.00021363,2]
[387083603,1758568251608,-501.84197014,0.00021363,2]
[387083604,1758568251618,-501.41992364,0.00021363,2]
[387083607,1758568251628,-290.77588044,0.00021363,2]
[387083608,1758568251637,-500.27819127,0.00021363,2]
[387083610,1758568251648,-500.0,0.00021363,2]
[387083612,1758568251657,-4000.0,0.00021366,2]
[387083614,1758568251666,-480.0,0.00021369,2]
[387083616,1758568251675,-480.0,0.00021369,2]
[387083618,1758568251684,-814.12,0.00021369,2]
[387083620,1758568251693,-480.0,0.00021369,2]
[387083622,1758568251703,-3912.38,0.00021369,2]
[387083624,1758568251712,-482.25,0.00021369,2]
[387083626,1758568251721,-480.0,0.00021369,2]
[387083628,1758568251730,-1780.77,0.00021369,2]
[387083630,1758568251740,-480.0,0.00021369,2]
[387083632,1758568251752,-480.0,0.00021369,2]
[387083634,1758568251761,-480.0,0.00021369,2]
[387083636,1758568251770,-480.0,0.00021369,2]
[387083638,1758568251780,-778.24,0.00021369,2]
[387083640,1758568251789,-480.0,0.00021369,2]
[387083642,1758568251800,-480.0,0.00021369,2]
[387083644,1758568251809,-654.47,0.00021369,2]
[387083646,1758568251819,-480.0,0.00021369,2]
[387083648,1758568251828,-480.0,0.00021369,2]
[387083650,1758568251837,-480.0,0.00021369,2]
[387083652,1758568251846,-480.0,0.00021369,2]
[387083654,1758568251855,-476.05367128,0.0002138,2]
[387083656,1758568251864,-360.0,0.00021383,2]
[387083658,1758568251873,-501.93914469,0.000214,2]
[387083660,1758568251882,-500.0,0.000214,2]
[387083662,1758568251892,-500.0,0.00021494,2]
[387083665,1758568251903,-500.0,0.00021494,2]
[387083667,1758568251913,-500.0,0.00021494,2]
[387083669,1758568251922,-501.0079376,0.00021494,2]
[387083671,1758568251931,-500.0,0.00021494,2]
[387083673,1758568251940,-500.0,0.00021494,2]
[387083675,1758568251949,-500.0,0.00021494,2]
[387083676,1758568251958,-174.77357621,0.00021494,2]
[387083679,1758568251969,-500.0,0.00021494,2]
[387083681,1758568251988,-500.0,0.00021494,2]
[387083683,1758568251997,-500.0,0.00021494,2]
[387083685,1758568252006,-500.93157199,0.00021494,2]
[387083687,1758568252015,-500.0,0.00021494,2]
[387083689,1758568252025,-500.0,0.00021494,2]
[387083691,1758568252034,-500.0,0.00021494,2]
[387083693,1758568252044,-500.0,0.00021494,2]
[387083695,1758568252053,-500.0,0.00021494,2]
[387083697,1758568252062,-509.19721182,0.00021494,2]
[387083699,1758568252071,-500.0,0.00021494,2]
[387083701,1758568252080,-208.76171828,0.00021494,2]
[387083703,1758568252088,-500.83686526,0.00021494,2]
[387083705,1758568252097,-500.0,0.00021494,2]
[387083707,1758568252106,-500.0,0.00021494,2]
[387083709,1758568252116,-245.0,0.00021516,2]
[387083711,1758568252125,-174.63566436,0.00021516,2]
[387083713,1758568252134,-500.0,0.00021516,2]
[387083714,1758568252143,-500.0,0.00021556,2]
[387083716,1758568252152,-150.075,0.00021579,2]
[387083718,1758568252161,-150.0,0.00021579,2]
[387083720,1758568252170,-978.0,0.00021579,2]
[387083723,1758568252180,-634.0,0.00021579,2]
[387083725,1758568252190,-2159.0,0.00021579,2]
[387083726,1758568252198,-160.0,0.00021633,2]
[387083728,1758568252208,-417.15472785,0.00021633,2]
[387083730,1758568252217,-9985.40130503,0.00021633,2]
[387083732,1758568252226,-160.0,0.00021633,2]
[387083734,1758568252236,-160.0,0.00021633,2]
[387083736,1758568252245,-160.0,0.00021633,2]
[387083738,1758568252255,-233.55588323,0.00021633,2]
[387083740,1758568252264,-480.0,0.00021643,2]
[387083742,1758568252274,-480.0,0.00021643,2]
[387083744,1758568252284,-814.12,0.00021643,2]
[387083746,1758568252293,-480.0,0.00021643,2]
[387083748,1758568252303,-3885.22657155,0.00021643,2]
[387085771,1758568801556,-286.99453425,0.00018175,2]
[387085772,1758568806202,-3.57682115,0.00018175,2]
[387085781,1758569089768,-155.08144284,0.00018077,2]
[387085782,1758569093885,-30.79740916,0.00018077,2]
[387085788,1758569178154,-198.56085718,0.00018076,2]
[387085789,1758569180605,-7.29635882,0.00018076,2]
[387085790,1758569210140,-683.8354652,0.00018977,2]